[Event "Titled Tuesday Blitz March 28 Late 2023"]
[White "koteRV1610"]
[Black "Wagner, Dennis"]
[BlackFideId "24650684"]
[WhiteElo "2647"]
[BlackElo "2470"]
[Result "1-0"]
[Round "09"]
[TimeControl "180+2"]
[Date "2023.03.28"]
[WhiteClock "0:00:51"]
[BlackClock "0:00:21"]

1. e4 {[%clk 0:03:00]}  c5 {[%clk 0:02:59]} 2. Nf3 {[%clk 0:03:01]}  d6 {[%clk 0:03:00]} 3. d4 {[%clk 0:03:01]}  cxd4 {[%clk 0:03:01]} 4. Nxd4 {[%clk 0:03:02]}  Nf6 {[%clk 0:03:01]} 5. Nc3 {[%clk 0:03:03]}  a6 {[%clk 0:03:02]} 6. Bg5 {[%clk 0:03:04]}  e6 {[%clk 0:03:02]} 7. f4 {[%clk 0:03:04]}  Nbd7 {[%clk 0:03:02]} 8. Qe2 {[%clk 0:03:05]}  Qc7 {[%clk 0:03:01]} 9. O-O-O {[%clk 0:03:02]}  b5 {[%clk 0:02:59]} 10. a3 {[%clk 0:03:03]}  Be7 {[%clk 0:02:56]} 11. g4 {[%clk 0:03:00]}  h6 {[%clk 0:02:48]} 12. Bh4 {[%clk 0:03:01]}  Bb7 {[%clk 0:02:45]} 13. Rg1 {[%clk 0:02:57]}  Rc8 {[%clk 0:02:33]} 14. Kb1 {[%clk 0:02:39]}  g5 {[%clk 0:02:23]} 15. fxg5 {[%clk 0:02:39]}  hxg5 {[%clk 0:02:23]} 16. Bxg5 {[%clk 0:02:40]}  Qb6 {[%clk 0:02:22]} 17. Qe1 {[%clk 0:02:32]}  Rxc3 {[%clk 0:02:07]} 18. Bxf6 {[%clk 0:02:32]}  Nxf6 {[%clk 0:01:58]} 19. Qxc3 {[%clk 0:02:32]}  Nxe4 {[%clk 0:01:58]} 20. Qe1 {[%clk 0:02:14]}  Rxh2 {[%clk 0:01:50]} 21. Bg2 {[%clk 0:02:05]}  Bh4 {[%clk 0:01:34]} 22. Qb4 {[%clk 0:01:50]}  Bf2 {[%clk 0:01:15]} 23. Bxe4 {[%clk 0:01:38]}  Bxe4 {[%clk 0:01:09]} 24. Rgf1 {[%clk 0:01:36]}  e5 {[%clk 0:00:50]} 25. Ne2 {[%clk 0:01:23]}  Qc6 {[%clk 0:00:30]} 26. Qxd6 {[%clk 0:01:06]}  Bxc2+ {[%clk 0:00:24]} 27. Ka1 {[%clk 0:01:02]}  Qxd6 {[%clk 0:00:22]} 28. Rxd6 {[%clk 0:01:02]}  Ke7 {[%clk 0:00:16]} 29. Rd2 {[%clk 0:01:01]}  Bb3 {[%clk 0:00:12]} 30. Nc1 {[%clk 0:01:00]}  Bc4 {[%clk 0:00:10]} 31. Rfxf2 {[%clk 0:00:59]}  Rh1 {[%clk 0:00:10]} 32. Kb1 {[%clk 0:00:59]}  e4 {[%clk 0:00:10]} 33. Rfe2 {[%clk 0:00:39]}  Bxe2 {[%clk 0:00:10]} 34. Rxe2 {[%clk 0:00:40]}  Kf6 {[%clk 0:00:08]} 35. Rxe4 {[%clk 0:00:41]}  Kg5 {[%clk 0:00:09]} 36. Kc2 {[%clk 0:00:41]}  Rh2+ {[%clk 0:00:09]} 37. Kc3 {[%clk 0:00:41]}  Rg2 {[%clk 0:00:10]} 38. Nd3 {[%clk 0:00:40]}  Rxg4 {[%clk 0:00:09]} 39. Rxg4+ {[%clk 0:00:41]}  Kxg4 {[%clk 0:00:09]} 40. Ne5+ {[%clk 0:00:42]}  Kf5 {[%clk 0:00:10]} 41. Nxf7 {[%clk 0:00:43]}  Ke6 {[%clk 0:00:10]} 42. Ng5+ {[%clk 0:00:43]}  Kd5 {[%clk 0:00:10]} 43. Nf3 {[%clk 0:00:43]}  Kc5 {[%clk 0:00:11]} 44. b4+ {[%clk 0:00:44]}  Kd5 {[%clk 0:00:11]} 45. Kd3 {[%clk 0:00:44]}  Kd6 {[%clk 0:00:10]} 46. Kd4 {[%clk 0:00:45]}  Kc6 {[%clk 0:00:11]} 47. Ke5 {[%clk 0:00:45]}  Kb6 {[%clk 0:00:12]} 48. Kd5 {[%clk 0:00:45]}  a5 {[%clk 0:00:13]} 49. Nd4 {[%clk 0:00:46]}  axb4 {[%clk 0:00:13]} 50. axb4 {[%clk 0:00:47]}  Ka6 {[%clk 0:00:14]} 51. Kc6 {[%clk 0:00:47]}  Ka7 {[%clk 0:00:14]} 52. Nxb5+ {[%clk 0:00:48]}  Ka6 {[%clk 0:00:15]} 53. Nd4 {[%clk 0:00:48]}  Ka7 {[%clk 0:00:15]} 54. b5 {[%clk 0:00:49]}  Kb8 {[%clk 0:00:16]} 55. b6 {[%clk 0:00:49]}  Ka8 {[%clk 0:00:17]} 56. b7+ {[%clk 0:00:48]}  Kb8 {[%clk 0:00:18]} 57. Ne6 {[%clk 0:00:49]}  Ka7 {[%clk 0:00:18]} 58. Kc7 {[%clk 0:00:50]}  Ka6 {[%clk 0:00:19]} 59. b8=Q {[%clk 0:00:50]}  Ka5 {[%clk 0:00:20]} 60. Qb3 {[%clk 0:00:50]}  Ka6 {[%clk 0:00:21]} 61. Qb6# {[%clk 0:00:51]} 1-0


[Site "https://www.chess.com"]

[Event "Titled Tuesday Blitz March 28 Late 2023"]
[White "Rustemov, Alexander"]
[Black "Ozates, Tuna"]
[WhiteFideId "4119002"]
[BlackFideId "6354521"]
[WhiteElo "2881"]
[BlackElo "2151"]
[Result "1-0"]
[Round "09"]
[TimeControl "180+2"]
[Date "2023.03.28"]
[WhiteClock "0:00:51"]
[BlackClock "0:00:19"]

1. d4 {[%clk 0:02:57]}  d5 {[%clk 0:03:00]} 2. c4 {[%clk 0:02:55]}  c6 {[%clk 0:03:00]} 3. Nc3 {[%clk 0:02:55]}  Nf6 {[%clk 0:03:00]} 4. e3 {[%clk 0:02:55]}  e6 {[%clk 0:03:01]} 5. Nf3 {[%clk 0:02:56]}  Nbd7 {[%clk 0:03:01]} 6. Qc2 {[%clk 0:02:57]}  Bd6 {[%clk 0:03:01]} 7. b3 {[%clk 0:02:57]}  O-O {[%clk 0:03:01]} 8. Be2 {[%clk 0:02:58]}  b6 {[%clk 0:03:01]} 9. O-O {[%clk 0:02:58]}  Bb7 {[%clk 0:03:02]} 10. Bb2 {[%clk 0:02:59]}  Qe7 {[%clk 0:03:02]} 11. Rad1 {[%clk 0:03:00]}  Rfe8 {[%clk 0:03:03]} 12. Rfe1 {[%clk 0:03:00]}  Rad8 {[%clk 0:03:03]} 13. g3 {[%clk 0:03:01]}  c5 {[%clk 0:02:58]} 14. cxd5 {[%clk 0:03:01]}  exd5 {[%clk 0:02:56]} 15. Bf1 {[%clk 0:02:56]}  Bb8 {[%clk 0:02:37]} 16. Bg2 {[%clk 0:02:52]}  c4 {[%clk 0:02:15]} 17. Nd2 {[%clk 0:02:47]}  cxb3 {[%clk 0:02:09]} 18. Qxb3 {[%clk 0:02:47]}  Nf8 {[%clk 0:02:06]} 19. a4 {[%clk 0:02:42]}  Ng6 {[%clk 0:02:01]} 20. Rc1 {[%clk 0:02:40]}  h5 {[%clk 0:02:01]} 21. Ba3 {[%clk 0:02:32]}  Qe6 {[%clk 0:01:59]} 22. Ne2 {[%clk 0:02:16]}  h4 {[%clk 0:01:51]} 23. Nf3 {[%clk 0:02:16]}  Ne4 {[%clk 0:01:43]} 24. Nf4 {[%clk 0:02:08]}  Bxf4 {[%clk 0:01:19]} 25. exf4 {[%clk 0:02:07]}  Ba6 {[%clk 0:01:15]} 26. Ng5 {[%clk 0:01:56]}  Qf5 {[%clk 0:01:09]} 27. Qc2 {[%clk 0:01:36]}  Rc8 {[%clk 0:01:03]} 28. Qb1 {[%clk 0:01:36]}  Rxc1 {[%clk 0:01:02]} 29. Rxc1 {[%clk 0:01:35]}  hxg3 {[%clk 0:00:52]} 30. hxg3 {[%clk 0:01:34]}  Qf6 {[%clk 0:00:36]} 31. Re1 {[%clk 0:01:23]}  Qxd4 {[%clk 0:00:33]} 32. Nxe4 {[%clk 0:01:23]}  dxe4 {[%clk 0:00:34]} 33. Rxe4 {[%clk 0:01:23]}  Rxe4 {[%clk 0:00:32]} 34. Bxe4 {[%clk 0:01:23]}  Qxa4 {[%clk 0:00:25]} 35. Bd6 {[%clk 0:01:17]}  Nf8 {[%clk 0:00:24]} 36. f5 {[%clk 0:01:06]}  Nd7 {[%clk 0:00:22]} 37. Bc2 {[%clk 0:00:51]}  Bb7 {[%clk 0:00:19]} 38. Bxa4 {[%clk 0:00:51]} 1-0


[Site "https://www.chess.com"]

[Event "Titled Tuesday Blitz March 28 Late 2023"]
[White "Urazayev, Arystanbek"]
[Black "Demchenko, Anton"]
[WhiteFideId "13709810"]
[BlackFideId "4160258"]
[WhiteElo "2479"]
[BlackElo "2545"]
[Result "0-1"]
[Round "09"]
[TimeControl "180+2"]
[Date "2023.03.28"]
[WhiteClock "0:00:01"]
[BlackClock "0:00:04"]

1. e4 {[%clk 0:03:00]}  e5 {[%clk 0:02:58]} 2. Nf3 {[%clk 0:03:01]}  Nc6 {[%clk 0:02:58]} 3. Nc3 {[%clk 0:03:02]}  Nf6 {[%clk 0:02:58]} 4. d4 {[%clk 0:03:03]}  exd4 {[%clk 0:02:59]} 5. Nxd4 {[%clk 0:03:04]}  Bb4 {[%clk 0:02:59]} 6. Nxc6 {[%clk 0:03:04]}  bxc6 {[%clk 0:03:00]} 7. Bd3 {[%clk 0:03:05]}  O-O {[%clk 0:03:00]} 8. O-O {[%clk 0:03:05]}  d5 {[%clk 0:03:01]} 9. Bd2 {[%clk 0:03:06]}  Rb8 {[%clk 0:02:59]} 10. Re1 {[%clk 0:03:04]}  Re8 {[%clk 0:02:59]} 11. a3 {[%clk 0:02:59]}  Bc5 {[%clk 0:02:53]} 12. b4 {[%clk 0:02:55]}  Bd4 {[%clk 0:02:50]} 13. exd5 {[%clk 0:02:55]}  cxd5 {[%clk 0:02:37]} 14. h3 {[%clk 0:02:37]}  Be6 {[%clk 0:02:35]} 15. Rb1 {[%clk 0:02:33]}  c6 {[%clk 0:02:27]} 16. Ne2 {[%clk 0:02:32]}  Bb6 {[%clk 0:02:28]} 17. Nf4 {[%clk 0:02:31]}  Bc7 {[%clk 0:02:13]} 18. Qf3 {[%clk 0:02:29]}  Qd6 {[%clk 0:02:13]} 19. g3 {[%clk 0:02:27]}  Ne4 {[%clk 0:02:07]} 20. Rbd1 {[%clk 0:01:58]}  Bf5 {[%clk 0:01:38]} 21. Be3 {[%clk 0:01:48]}  a5 {[%clk 0:01:03]} 22. Bc5 {[%clk 0:01:48]}  Qf6 {[%clk 0:00:50]} 23. Nh5 {[%clk 0:01:23]}  Qg6 {[%clk 0:00:50]} 24. Bd4 {[%clk 0:01:16]}  f6 {[%clk 0:00:39]} 25. g4 {[%clk 0:01:12]}  Bd7 {[%clk 0:00:35]} 26. Qg2 {[%clk 0:00:37]}  Qg5 {[%clk 0:00:23]} 27. f3 {[%clk 0:00:31]}  Nd6 {[%clk 0:00:14]} 28. f4 {[%clk 0:00:29]}  Qh4 {[%clk 0:00:09]} 29. Bf2 {[%clk 0:00:27]}  Bb6 {[%clk 0:00:10]} 30. Rxe8+ {[%clk 0:00:26]}  Bxe8 {[%clk 0:00:08]} 31. Bxb6 {[%clk 0:00:25]}  Rxb6 {[%clk 0:00:09]} 32. Ng3 {[%clk 0:00:16]}  axb4 {[%clk 0:00:09]} 33. axb4 {[%clk 0:00:16]}  Qh6 {[%clk 0:00:06]} 34. Qf2 {[%clk 0:00:11]}  Rb8 {[%clk 0:00:07]} 35. c3 {[%clk 0:00:10]}  Bf7 {[%clk 0:00:05]} 36. Kg2 {[%clk 0:00:10]}  Re8 {[%clk 0:00:04]} 37. Rd2 {[%clk 0:00:09]}  d4 {[%clk 0:00:03]} 38. cxd4 {[%clk 0:00:08]}  Bd5+ {[%clk 0:00:04]} 39. Kh2 {[%clk 0:00:08]}  Qh4 {[%clk 0:00:04]} 40. Re2 {[%clk 0:00:07]}  Rb8 {[%clk 0:00:04]} 41. Nf5 {[%clk 0:00:06]}  Nxf5 {[%clk 0:00:04]} 42. Bxf5 {[%clk 0:00:06]}  Qxf2+ {[%clk 0:00:04]} 43. Rxf2 {[%clk 0:00:07]}  Rxb4 {[%clk 0:00:04]} 44. Rd2 {[%clk 0:00:08]}  Rb3 {[%clk 0:00:04]} 45. Bd7 {[%clk 0:00:04]}  g6 {[%clk 0:00:04]} 46. Re2 {[%clk 0:00:04]}  Kf7 {[%clk 0:00:04]} 47. Be8+ {[%clk 0:00:04]}  Kf8 {[%clk 0:00:05]} 48. Bd7 {[%clk 0:00:05]}  Rb7 {[%clk 0:00:05]} 49. Be6 {[%clk 0:00:03]}  Re7 {[%clk 0:00:05]} 50. f5 {[%clk 0:00:04]}  Ke8 {[%clk 0:00:05]} 51. Kg3 {[%clk 0:00:04]}  Kd8 {[%clk 0:00:05]} 52. Kf4 {[%clk 0:00:05]}  g5+ {[%clk 0:00:05]} 53. Kg3 {[%clk 0:00:04]}  Kc7 {[%clk 0:00:05]} 54. h4 {[%clk 0:00:04]}  h6 {[%clk 0:00:05]} 55. hxg5 {[%clk 0:00:04]}  hxg5 {[%clk 0:00:06]} 56. Rh2 {[%clk 0:00:03]}  Bxe6 {[%clk 0:00:06]} 57. fxe6 {[%clk 0:00:04]}  Rxe6 {[%clk 0:00:07]} 58. Kf3 {[%clk 0:00:04]}  Kd6 {[%clk 0:00:07]} 59. Rh7 {[%clk 0:00:04]}  Kd5 {[%clk 0:00:08]} 60. Rd7+ {[%clk 0:00:04]}  Rd6 {[%clk 0:00:08]} 61. Re7 {[%clk 0:00:02]}  Kxd4 {[%clk 0:00:08]} 62. Re4+ {[%clk 0:00:02]}  Kd5 {[%clk 0:00:09]} 63. Ra4 {[%clk 0:00:02]}  c5 {[%clk 0:00:09]} 64. Ke3 {[%clk 0:00:03]}  Ke5 {[%clk 0:00:09]} 65. Rc4 {[%clk 0:00:03]}  Rc6 {[%clk 0:00:09]} 66. Re4+ {[%clk 0:00:03]}  Kd5 {[%clk 0:00:09]} 67. Re8 {[%clk 0:00:02]}  c4 {[%clk 0:00:10]} 68. Kd2 {[%clk 0:00:02]}  c3+ {[%clk 0:00:09]} 69. Kc2 {[%clk 0:00:03]}  Kd4 {[%clk 0:00:09]} 70. Re1 {[%clk 0:00:02]}  Rb6 {[%clk 0:00:07]} 71. Rd1+ {[%clk 0:00:03]}  Kc4 {[%clk 0:00:07]} 72. Rf1 {[%clk 0:00:01]}  Rb2+ {[%clk 0:00:07]} 73. Kc1 {[%clk 0:00:02]}  Rb6 {[%clk 0:00:05]} 74. Kc2 {[%clk 0:00:02]}  Ra6 {[%clk 0:00:05]} 75. Rf5 {[%clk 0:00:01]}  Re6 {[%clk 0:00:04]} 0-1


[Site "https://www.chess.com"]

[Event "Titled Tuesday Blitz March 28 Late 2023"]
[White "Mekhane, Adam"]
[Black "Vachier-Lagrave, Maxime"]
[WhiteFideId "36050601"]
[BlackFideId "623539"]
[WhiteElo "2177"]
[BlackElo "2740"]
[Result "1-0"]
[Round "09"]
[TimeControl "180+2"]
[Date "2023.03.28"]
[WhiteClock "0:00:32"]
[BlackClock "0:02:16"]

1. e4 {[%clk 0:03:00]}  c5 {[%clk 0:02:59]} 2. Nf3 {[%clk 0:03:00]}  e6 {[%clk 0:02:57]} 3. d4 {[%clk 0:02:56]}  cxd4 {[%clk 0:02:58]} 4. Nxd4 {[%clk 0:02:57]}  Nc6 {[%clk 0:02:57]} 5. Nc3 {[%clk 0:02:54]}  Nf6 {[%clk 0:02:57]} 6. a3 {[%clk 0:02:53]}  Qc7 {[%clk 0:02:52]} 7. Be2 {[%clk 0:02:51]}  a6 {[%clk 0:02:51]} 8. Be3 {[%clk 0:02:51]}  b5 {[%clk 0:02:50]} 9. Nxc6 {[%clk 0:02:47]}  dxc6 {[%clk 0:02:50]} 10. O-O {[%clk 0:02:46]}  Bb7 {[%clk 0:02:49]} 11. f4 {[%clk 0:02:27]}  Rd8 {[%clk 0:02:49]} 12. Qe1 {[%clk 0:02:27]}  c5 {[%clk 0:02:48]} 13. e5 {[%clk 0:01:47]}  Nd5 {[%clk 0:02:48]} 14. Nxd5 {[%clk 0:01:43]}  Bxd5 {[%clk 0:02:49]} 15. a4 {[%clk 0:01:38]}  c4 {[%clk 0:02:44]} 16. axb5 {[%clk 0:01:37]}  Bc5 {[%clk 0:02:45]} 17. Qf2 {[%clk 0:01:34]}  Bxe3 {[%clk 0:02:44]} 18. Qxe3 {[%clk 0:01:35]}  axb5 {[%clk 0:02:45]} 19. Ra7 {[%clk 0:01:32]}  Qb8 {[%clk 0:02:41]} 20. Qc5 {[%clk 0:01:27]}  Rd7 {[%clk 0:02:37]} 21. Rfa1 {[%clk 0:01:17]}  Bb7 {[%clk 0:02:27]} 22. Qxb5 {[%clk 0:01:03]}  Qc8 {[%clk 0:02:20]} 23. Rxb7 {[%clk 0:00:50]}  Qxb7 {[%clk 0:02:19]} 24. Qxb7 {[%clk 0:00:48]}  Rxb7 {[%clk 0:02:20]} 25. Ra8+ {[%clk 0:00:48]}  Ke7 {[%clk 0:02:21]} 26. Rxh8 {[%clk 0:00:49]}  Rxb2 {[%clk 0:02:21]} 27. Bxc4 {[%clk 0:00:47]}  Rxc2 {[%clk 0:02:22]} 28. Bf1 {[%clk 0:00:46]}  h6 {[%clk 0:02:22]} 29. Rg8 {[%clk 0:00:46]}  g6 {[%clk 0:02:22]} 30. Ra8 {[%clk 0:00:44]}  Rc5 {[%clk 0:02:20]} 31. Ra7+ {[%clk 0:00:44]}  Kf8 {[%clk 0:02:20]} 32. Kf2 {[%clk 0:00:43]}  g5 {[%clk 0:02:20]} 33. g3 {[%clk 0:00:42]}  Rc2+ {[%clk 0:02:20]} 34. Kf3 {[%clk 0:00:39]}  gxf4 {[%clk 0:02:21]} 35. gxf4 {[%clk 0:00:37]}  Rxh2 {[%clk 0:02:21]} 36. Bg2 {[%clk 0:00:36]}  Rh5 {[%clk 0:02:18]} 37. Kg4 {[%clk 0:00:33]}  Rh2 {[%clk 0:02:16]} 38. Kg3 {[%clk 0:00:33]}  Rh5 {[%clk 0:02:16]} 39. Bf3 {[%clk 0:00:32]} 1-0


[Site "https://www.chess.com"]

[Event "Titled Tuesday Blitz March 28 Late 2023"]
[White "Baskakov, Egor"]
[Black "Domingo Nunez, Alejandro"]
[WhiteFideId "24197866"]
[BlackFideId "22245561"]
[WhiteElo "2212"]
[BlackElo "2230"]
[Result "1/2-1/2"]
[Round "09"]
[TimeControl "180+2"]
[Date "2023.03.28"]
[WhiteClock "0:01:27"]
[BlackClock "0:00:53"]

1. e4 {[%clk 0:03:00]}  g6 {[%clk 0:03:00]} 2. g3 {[%clk 0:02:59]}  Bg7 {[%clk 0:03:00]} 3. Bg2 {[%clk 0:03:00]}  c5 {[%clk 0:03:00]} 4. Ne2 {[%clk 0:03:01]}  Nc6 {[%clk 0:03:00]} 5. O-O {[%clk 0:03:01]}  e6 {[%clk 0:03:01]} 6. c4 {[%clk 0:02:56]}  Nge7 {[%clk 0:02:55]} 7. Nbc3 {[%clk 0:02:56]}  O-O {[%clk 0:02:53]} 8. d3 {[%clk 0:02:56]}  Nd4 {[%clk 0:02:44]} 9. Nxd4 {[%clk 0:02:56]}  cxd4 {[%clk 0:02:43]} 10. Ne2 {[%clk 0:02:56]}  d5 {[%clk 0:02:43]} 11. cxd5 {[%clk 0:02:56]}  exd5 {[%clk 0:02:43]} 12. exd5 {[%clk 0:02:55]}  Nxd5 {[%clk 0:02:42]} 13. Nf4 {[%clk 0:02:56]}  Ne7 {[%clk 0:02:26]} 14. Re1 {[%clk 0:02:52]}  Nc6 {[%clk 0:02:26]} 15. Bd2 {[%clk 0:02:49]}  Ne5 {[%clk 0:02:25]} 16. Qb3 {[%clk 0:02:46]}  Bg4 {[%clk 0:02:21]} 17. Bb4 {[%clk 0:02:11]}  Re8 {[%clk 0:01:42]} 18. Re4 {[%clk 0:01:45]}  Bf5 {[%clk 0:00:53]} 19. Ree1 {[%clk 0:01:41]}  Bg4 {[%clk 0:00:53]} 20. Re4 {[%clk 0:01:38]}  Bf5 {[%clk 0:00:53]} 21. Ree1 {[%clk 0:01:27]}  Bg4 {[%clk 0:00:53]} 1/2-1/2


[Site "https://www.chess.com"]

[Event "Titled Tuesday Blitz March 28 Late 2023"]
[White "Popov, Mikhail"]
[Black "Mendonca, Leon Luke"]
[WhiteFideId "4146182"]
[BlackFideId "35028561"]
[WhiteElo "2270"]
[BlackElo "2464"]
[Result "0-1"]
[Round "09"]
[TimeControl "180+2"]
[Date "2023.03.28"]
[WhiteClock "0:00:02"]
[BlackClock "0:00:09"]

1. d4 {[%clk 0:03:00]}  Nf6 {[%clk 0:02:59]} 2. Nf3 {[%clk 0:02:59]}  e6 {[%clk 0:02:56]} 3. Bg5 {[%clk 0:02:59]}  b6 {[%clk 0:02:48]} 4. e4 {[%clk 0:02:55]}  h6 {[%clk 0:02:47]} 5. Bxf6 {[%clk 0:02:54]}  Qxf6 {[%clk 0:02:48]} 6. Nc3 {[%clk 0:02:54]}  Bb7 {[%clk 0:02:48]} 7. Qd2 {[%clk 0:02:53]}  g5 {[%clk 0:02:42]} 8. h3 {[%clk 0:02:53]}  Bg7 {[%clk 0:02:42]} 9. O-O-O {[%clk 0:02:50]}  Qe7 {[%clk 0:02:34]} 10. Kb1 {[%clk 0:02:29]}  d6 {[%clk 0:02:34]} 11. Bb5+ {[%clk 0:02:18]}  Nd7 {[%clk 0:02:34]} 12. d5 {[%clk 0:02:17]}  a6 {[%clk 0:02:30]} 13. Bxd7+ {[%clk 0:02:12]}  Qxd7 {[%clk 0:02:31]} 14. e5 {[%clk 0:01:42]}  dxe5 {[%clk 0:02:12]} 15. dxe6 {[%clk 0:01:12]}  Qxe6 {[%clk 0:02:09]} 16. Rhe1 {[%clk 0:01:09]}  O-O {[%clk 0:01:11]} 17. Qd7 {[%clk 0:00:48]}  Bxf3 {[%clk 0:00:51]} 18. gxf3 {[%clk 0:00:45]}  Rac8 {[%clk 0:00:48]} 19. Qxe6 {[%clk 0:00:38]}  fxe6 {[%clk 0:00:48]} 20. Re3 {[%clk 0:00:39]}  Rcd8 {[%clk 0:00:44]} 21. Kc1 {[%clk 0:00:37]}  Kf7 {[%clk 0:00:44]} 22. Ne4 {[%clk 0:00:34]}  Kg6 {[%clk 0:00:39]} 23. Ng3 {[%clk 0:00:27]}  Rxd1+ {[%clk 0:00:30]} 24. Kxd1 {[%clk 0:00:27]}  e4 {[%clk 0:00:27]} 25. Rxe4 {[%clk 0:00:21]}  Rxf3 {[%clk 0:00:27]} 26. Rxe6+ {[%clk 0:00:21]}  Kf7 {[%clk 0:00:19]} 27. Rc6 {[%clk 0:00:18]}  Rxf2 {[%clk 0:00:19]} 28. Rxc7+ {[%clk 0:00:17]}  Kg6 {[%clk 0:00:20]} 29. Rc6+ {[%clk 0:00:17]}  Rf6 {[%clk 0:00:19]} 30. Rxf6+ {[%clk 0:00:13]}  Bxf6 {[%clk 0:00:20]} 31. b3 {[%clk 0:00:13]}  Be5 {[%clk 0:00:21]} 32. Ne2 {[%clk 0:00:10]}  Kf5 {[%clk 0:00:21]} 33. Ke1 {[%clk 0:00:10]}  Ke4 {[%clk 0:00:21]} 34. Kf2 {[%clk 0:00:10]}  h5 {[%clk 0:00:21]} 35. c3 {[%clk 0:00:08]}  Kd3 {[%clk 0:00:20]} 36. c4 {[%clk 0:00:06]}  a5 {[%clk 0:00:17]} 37. Kf3 {[%clk 0:00:06]}  g4+ {[%clk 0:00:16]} 38. hxg4 {[%clk 0:00:07]}  hxg4+ {[%clk 0:00:17]} 39. Kf2 {[%clk 0:00:08]}  Kc2 {[%clk 0:00:17]} 40. Ke3 {[%clk 0:00:07]}  Kb2 {[%clk 0:00:17]} 41. Ke4 {[%clk 0:00:08]}  Bh2 {[%clk 0:00:13]} 42. Kd5 {[%clk 0:00:04]}  Kxa2 {[%clk 0:00:10]} 43. Kc6 {[%clk 0:00:03]}  Kxb3 {[%clk 0:00:08]} 44. Kxb6 {[%clk 0:00:04]}  a4 {[%clk 0:00:09]} 45. c5 {[%clk 0:00:04]}  a3 {[%clk 0:00:09]} 46. c6 {[%clk 0:00:04]}  a2 {[%clk 0:00:09]} 47. Nc1+ {[%clk 0:00:04]}  Ka3 {[%clk 0:00:08]} 48. Nxa2 {[%clk 0:00:04]}  Kxa2 {[%clk 0:00:09]} 49. Kb7 {[%clk 0:00:04]}  Bf4 {[%clk 0:00:08]} 50. Kb6 {[%clk 0:00:01]}  g3 {[%clk 0:00:09]} 51. c7 {[%clk 0:00:02]}  Bxc7+ {[%clk 0:00:09]} 52. Kxc7 {[%clk 0:00:02]}  g2 {[%clk 0:00:09]} 0-1


[Site "https://www.chess.com"]

[Event "Titled Tuesday Blitz March 28 Late 2023"]
[White "Aradhya, Garg"]
[Black "Sochacki, Christophe"]
[WhiteFideId "25006746"]
[BlackFideId "662569"]
[WhiteElo "2263"]
[BlackElo "2474"]
[Result "0-1"]
[Round "09"]
[TimeControl "180+2"]
[Date "2023.03.28"]
[WhiteClock "0:00:17"]
[BlackClock "0:00:10"]

1. d4 {[%clk 0:03:00]}  Nc6 {[%clk 0:02:57]} 2. Nf3 {[%clk 0:02:58]}  d6 {[%clk 0:02:56]} 3. c4 {[%clk 0:02:54]}  e5 {[%clk 0:02:57]} 4. Nc3 {[%clk 0:02:53]}  exd4 {[%clk 0:02:44]} 5. Nxd4 {[%clk 0:02:50]}  g6 {[%clk 0:02:45]} 6. e4 {[%clk 0:02:49]}  Bg7 {[%clk 0:02:41]} 7. Be3 {[%clk 0:02:49]}  Nge7 {[%clk 0:02:35]} 8. Be2 {[%clk 0:02:48]}  O-O {[%clk 0:02:23]} 9. O-O {[%clk 0:02:48]}  f5 {[%clk 0:02:23]} 10. exf5 {[%clk 0:02:48]}  Bxd4 {[%clk 0:02:21]} 11. Bxd4 {[%clk 0:02:38]}  Nxf5 {[%clk 0:02:21]} 12. Be3 {[%clk 0:02:38]}  Nxe3 {[%clk 0:02:21]} 13. fxe3 {[%clk 0:02:38]}  Be6 {[%clk 0:02:19]} 14. Qd2 {[%clk 0:02:37]}  Qg5 {[%clk 0:02:16]} 15. Nd5 {[%clk 0:02:36]}  Bxd5 {[%clk 0:02:10]} 16. cxd5 {[%clk 0:02:36]}  Ne7 {[%clk 0:02:06]} 17. Rfd1 {[%clk 0:02:32]}  Nf5 {[%clk 0:01:55]} 18. e4 {[%clk 0:02:30]}  Ne3 {[%clk 0:01:54]} 19. Bd3 {[%clk 0:02:30]}  Qh6 {[%clk 0:01:00]} 20. Rac1 {[%clk 0:02:25]}  Rf7 {[%clk 0:00:49]} 21. Be2 {[%clk 0:01:48]}  Qg5 {[%clk 0:00:39]} 22. g3 {[%clk 0:01:24]}  Re8 {[%clk 0:00:39]} 23. Bd3 {[%clk 0:01:17]}  Qh6 {[%clk 0:00:33]} 24. Re1 {[%clk 0:01:15]}  Ng4 {[%clk 0:00:31]} 25. Qxh6 {[%clk 0:01:14]}  Nxh6 {[%clk 0:00:32]} 26. b4 {[%clk 0:01:07]}  Ng4 {[%clk 0:00:32]} 27. a4 {[%clk 0:01:05]}  Ne5 {[%clk 0:00:32]} 28. Be2 {[%clk 0:01:05]}  c6 {[%clk 0:00:29]} 29. dxc6 {[%clk 0:01:03]}  bxc6 {[%clk 0:00:30]} 30. b5 {[%clk 0:01:03]}  cxb5 {[%clk 0:00:29]} 31. axb5 {[%clk 0:01:02]}  Kg7 {[%clk 0:00:23]} 32. Red1 {[%clk 0:01:00]}  Re6 {[%clk 0:00:19]} 33. Rd4 {[%clk 0:00:56]}  Nf3+ {[%clk 0:00:20]} 34. Bxf3 {[%clk 0:00:56]}  Rxf3 {[%clk 0:00:20]} 35. Rc6 {[%clk 0:00:43]}  Re3 {[%clk 0:00:14]} 36. Rcxd6 {[%clk 0:00:36]}  Rxd6 {[%clk 0:00:15]} 37. Rxd6 {[%clk 0:00:36]}  Rxe4 {[%clk 0:00:15]} 38. Rd7+ {[%clk 0:00:37]}  Kf6 {[%clk 0:00:14]} 39. Rxa7 {[%clk 0:00:37]}  Rb4 {[%clk 0:00:15]} 40. Rb7 {[%clk 0:00:37]}  Rb2 {[%clk 0:00:13]} 41. b6 {[%clk 0:00:32]}  h5 {[%clk 0:00:13]} 42. Rb8 {[%clk 0:00:31]}  Kg5 {[%clk 0:00:13]} 43. h3 {[%clk 0:00:29]}  h4 {[%clk 0:00:12]} 44. b7 {[%clk 0:00:22]}  hxg3 {[%clk 0:00:10]} 45. h4+ {[%clk 0:00:22]}  Kg4 {[%clk 0:00:10]} 46. Kf1 {[%clk 0:00:22]}  g2+ {[%clk 0:00:09]} 47. Kg1 {[%clk 0:00:21]}  Kg3 {[%clk 0:00:10]} 48. Rf8 {[%clk 0:00:17]}  Rb1+ {[%clk 0:00:11]} 49. Rf1 {[%clk 0:00:17]}  Rxf1# {[%clk 0:00:10]} 0-1


[Site "https://www.chess.com"]